bitfinex-derivatives/quotes_ETHF0:USTF0_20240818
["timestamp","ask_amount","ask_price","bid_price","bid_amount"]
[1724002775747,0.00313337,2654.8,2654.7,1.883]
[1724002775952,0.00313337,2654.8,2654.7,2.07085011]
[1724002776255,0.00313337,2654.8,2654.7,5.6502]
[1724002776747,0.00313337,2654.8,2654.7,5.83959465]
[1724002776954,0.00313337,2654.8,2654.7,2.07239465]
[1724002777254,0.00313337,2654.8,2654.7,5.83959465]
[1724002777554,0.00313337,2654.8,2654.7,2.07239465]
[1724002777850,0.00313337,2654.8,2654.7,1.883]
[1724002778063,0.00313337,2654.8,2654.7,5.83482917]
[1724002778450,0.00313337,2654.8,2654.7,1.883]
[1724002778942,0.00313337,2654.8,2654.6,4.1578]
[1724002779138,0.35493337,2654.8,2654.6,4.1578]
[1724002779342,0.72953337,2654.8,2654.7,1.883]
[1724002779638,0.72953337,2654.8,2654.7,2.0709923]
[1724002779639,0.00313337,2654.8,2654.7,2.0709923]
[1724002779764,0.00313337,2654.8,2654.7,5.8381923]
[1724002780355,0.00313337,2654.8,2654.7,2.0709923]
[1724002783453,0.00313337,2654.8,2654.7,1.1379923]
[1724002783758,0.00313337,2654.8,2654.7,2.833]
[1724002784560,0.00313337,2654.8,2654.7,0.95]
[1724002784749,1.883,2654.7,2654.4,1.8832]
[1724002784953,1.883,2654.7,2654.4,3.22244916]
[1724002784954,0.3791,2654.6,2654.4,3.22244916]
[1724002785192,0.3791,2654.6,2654.4,2.2376]
[1724002785662,0.371,2654.5,2654.4,2.2376]
[1724002785860,0.371,2654.5,2654.4,3.22244916]
[1724002786266,0.3791,2654.6,2654.5,1.88314]
[1724002786570,0.37413337,2654.8,2654.6,1.88307]
[1724002786769,0.3614,2654.7,2654.6,5.09087]
[1724002786958,0.37413337,2654.8,2654.6,5.09087]
[1724002786959,0.00313337,2654.8,2654.7,1.883]
[1724002787158,0.73553337,2654.8,2654.7,1.883]
[1724002788565,0.00313337,2654.8,2654.7,2.833]
[1724002789254,0.00313337,2654.8,2654.7,3.0169044]
[1724002791874,1.883,2654.7,2654.6,3.2078]
[1724002792056,5.6502,2654.7,2654.6,4.1578]
[1724002792276,5.6502,2654.7,2654.6,0.95]
[1724002793373,3.7672,2654.7,2654.6,0.95]
[1724002793557,3.7672,2654.7,2654.6,2.83307]
[1724002796467,0.00313337,2654.8,2654.7,1.883]
[1724002796670,3.77033337,2654.8,2654.7,1.883]
[1724002797165,0.00313337,2654.8,2654.7,1.883]
[1724002798664,1.88611337,2654.8,2654.6,1.3295]
[1724002798863,1.88611337,2654.8,2654.6,2.83305]
[1724002799964,0.00313337,2654.8,2654.7,1.883]
[1724002803875,1.883,2654.7,2654.5,3.2078]
[1724002804064,0.7063,2654.6,2654.5,5.09094]
[1724002804276,1.8832,2654.5,2654.3,1.88326]
[1724002804494,1.88321,2654.4,2654.2,5.09111]
[1724002804679,1.88321,2654.4,2654.2,3.2078]
[1724002804873,1.88328,2654.3,2654.2,3.2078]
[1724002805371,0.3505,2654.5,2654.2,5.09115]
[1724002805577,0.3505,2654.5,2654.4,0.95]
[1724002805784,2.23364,2654.5,2654.4,0.95]
[1724002808078,0.3505,2654.5,2654.4,2.83321]
[1724002808286,1.95420172,2654.8,2654.4,0.95]
[1724002808471,3.05290172,2654.8,2654.7,0.95]
[1724002809479,3.05290172,2654.8,2654.7,2.833]
[1724002811389,0.00313337,2654.8,2654.7,2.833]
[1724002811685,1.95420172,2654.8,2654.7,2.833]
[1724002811985,3.04770172,2654.8,2654.7,2.833]
[1724002814782,2.30850172,2654.8,2654.7,2.833]
[1724002814984,0.00313337,2654.8,2654.7,2.833]
[1724002816487,0.00313337,2654.8,2654.7,6.6002]
[1724002817980,0.00313337,2654.8,2654.7,7.16105837]
[1724002818689,0.00313337,2654.8,2654.7,6.9686]
[1724002819086,0.00313337,2654.8,2654.7,7.95457927]
[1724002819340,0.00313337,2654.8,2654.7,14.83757927]
[1724002819548,0.00313337,2654.8,2654.7,17.99535734]
[1724002819876,0.00313337,2654.8,2654.7,11.11530062]
[1724002820006,0.00313337,2654.8,2654.7,17.99830062]
[1724002822487,0.00313337,2654.8,2654.7,16.5180836]
[1724002822793,0.00313337,2654.8,2654.7,17.99830062]
[1724002823577,0.00313337,2654.8,2654.7,18.4010836]
[1724002823827,4.90163835,2655.6,2655.3,2.83252]
[1724002824019,4.90163835,2655.6,2655.5,0.95]
[1724002824393,6.78486835,2655.6,2655.5,0.95]
[1724002824597,3.01926835,2655.6,2655.5,2.83243]
[1724002824789,1.07247486,2655.6,2655.5,2.83567775]
[1724002824982,3.02354321,2655.6,2655.5,2.83567775]
[1724002825212,1.07247486,2655.6,2655.5,2.83567775]
[1724002825483,3.02354321,2655.6,2655.5,2.83567775]
[1724002826505,1.07247486,2655.6,2655.5,2.83567775]
[1724002826687,3.02354321,2655.6,2655.5,2.83567775]
[1724002827379,1.07247486,2655.6,2655.5,2.83567775]
[1724002827837,3.02354321,2655.6,2655.5,2.83567775]
[1724002828131,1.07247486,2655.6,2655.5,2.83567775]
[1724002829890,0.00427486,2655.6,2655.5,6.04347775]
[1724002832295,0.00427486,2655.6,2655.5,6.73797775]
[1724002833210,0.00427486,2655.6,2655.5,12.38600775]
[1724002833897,2.63073,2656.4,2656.0,1.88203]
[1724002834087,2.99973,2656.4,2656.3,0.95]
[1724002834303,6.76449,2656.4,2656.3,0.95]
[1724002834788,6.7689926,2656.4,2656.3,0.95]
[1724002835903,1.88187,2656.3,2655.7,4.176]
[1724002836096,3.76388,2656.2,2656.1,0.95]
[1724002836296,1.88201,2656.1,2656.0,0.95]
[1724002836798,1.88201,2656.1,2655.5,0.95889949]
[1724002836799,1.88236,2655.6,2655.5,0.95889949]
[1724002837120,3.76472,2655.6,2655.5,0.00889949]
[1724002837297,11.68896,2655.6,2655.5,0.00889949]
[1724002837492,11.68896,2655.6,2655.5,0.95889949]
[1724002838001,6.68896,2655.6,2655.5,0.95889949]
[1724002838396,6.68896,2655.6,2655.5,0.00889949]
[1724002838397,11.68896,2655.6,2655.5,0.00889949]
[1724002838702,6.68896,2655.6,2655.5,0.00889949]
[1724002838887,11.68896,2655.6,2655.5,0.00889949]
[1724002840497,13.57132,2655.6,2655.5,0.00889949]
[1724002841723,13.57132,2655.6,2654.8,5.8464]
[1724002841724,1.88277,2655.1,2654.8,7.72928]
[1724002841900,0.7392,2655.0,2654.9,1.88286]
[1724002842795,0.7392,2655.0,2654.9,1.88581858]
[1724002848606,0.7392,2655.0,2654.9,0.00295858]
[1724002849106,2.62199,2655.0,2654.9,0.00295858]
[1724002849310,0.7392,2655.0,2654.9,0.00295858]
[1724002849498,0.7392,2655.0,2654.9,1.88581858]
[1724002849811,0.3771,2655.1,2655.0,1.88279]
[1724002850012,1.1217,2655.1,2655.0,1.88279]
[1724002850804,1.1217,2655.1,2654.9,1.88575858]
[1724002851606,1.1217,2655.1,2654.9,0.00295858]
[1724002851902,1.88279,2655.0,2654.9,0.00295858]
[1724002852340,5.64919,2655.0,2654.9,0.00295858]
[1724002853507,1.88279,2655.0,2654.9,0.00295858]
[1724002853714,5.64919,2655.0,2654.9,0.00295858]
[1724002853902,10.64919,2655.0,2654.9,0.00295858]
[1724002854108,10.64919,2655.0,2654.7,0.00565174]
[1724002854311,3.7664,2654.9,2654.7,0.00565174]
[1724002854503,1.88293,2654.8,2654.7,0.00565174]
[1724002854700,5.64933,2654.8,2654.7,0.00565174]
[1724002855210,5.64933,2654.8,2654.7,0.00930171]
[1724002855813,3.7664,2654.8,2654.7,0.00930171]
[1724002856024,5.64933,2654.8,2654.7,0.00930171]
[1724002857717,1.88293,2654.8,2654.7,0.00930171]
[1724002858127,1.8829,2654.9,2654.7,2.24399171]
[1724002858320,1.8829,2654.9,2654.7,0.36100171]
[1724002859012,1.1217,2655.1,2654.8,1.88293]
[1724002859207,3.00447,2655.1,2654.8,1.88289]
[1724002859809,3.00447,2655.1,2654.9,1.88285]
[1724002860160,1.1217,2655.1,2654.7,0.36100171]
[1724002860510,1.1217,2655.1,2654.9,1.88283]
[1724002860706,3.00446,2655.1,2654.9,1.88283]
[1724002860932,1.1217,2655.1,2655.0,1.88279]
[1724002862122,0.7454,2655.1,2655.0,1.88279]
[1724002864125,0.7454,2655.1,2654.8,4.51462]
[1724002864322,1.88283,2655.0,2654.8,1.88292]
[1724002865709,2.62815,2655.1,2654.9,1.88283]
[1724002868745,2.62812,2655.1,2654.9,1.88281]
[1724002869524,2.62812,2655.1,2655.0,1.88279]
[1724002869722,2.62812,2655.1,2654.8,5.8311]
[1724002869925,2.62812,2655.1,2654.9,1.88282]
[1724002871325,0.3771,2655.1,2654.8,5.8311]
[1724002871526,0.00565174,2655.2,2655.1,1.88272]
[1724002871731,0.00565174,2655.2,2655.1,5.09052]
[1724002872540,0.00565174,2655.2,2655.1,2.83172]
[1724002872730,0.00565174,2655.2,2655.1,6.03952]
[1724002873321,0.00565174,2655.2,2655.1,7.92224]
[1724002873848,0.00565174,2655.2,2655.1,6.03952]
[1724002874548,0.00565174,2655.2,2655.1,13.01764]
[1724002874826,0.00565174,2655.2,2655.1,13.3180278]
[1724002875414,0.00565174,2655.2,2655.1,13.6808278]
[1724002875632,0.00269316,2655.2,2655.1,18.6808278]
[1724002877053,0.00269316,2655.2,2655.1,18.38044]
[1724002879641,5.63712132,2656.1,2655.1,18.38044]
[1724002879642,1.95557095,2656.4,2655.4,1.88244]
[1724002879931,0.7145,2656.2,2656.0,1.88204]
[1724002880129,0.7145,2656.2,2656.1,1.88201]
[1724002880332,0.7145,2656.2,2656.0,1.88204]
[1724002881037,0.3431,2656.1,2655.8,5.09002]
[1724002881222,2.22511,2656.1,2655.8,3.2078]
[1724002881422,2.22511,2656.1,2655.8,5.09002]
[1724002881729,2.22512,2656.1,2655.8,5.09002]
[1724002881930,0.3431,2656.1,2655.9,1.88211]
[1724002882128,0.3431,2656.1,2655.9,1.88215]
[1724002882730,0.3431,2656.1,2655.9,2.23435]
[1724002883566,0.7145,2656.2,2655.8,3.2078]
[1724002883728,2.59646,2656.2,2655.8,5.08996]
[1724002883928,0.3597,2656.1,2655.9,1.88215]
[1724002885131,6.00653,2656.1,2655.8,5.08998]
[1724002885331,2.24173,2656.1,2655.8,3.2078]
[1724002885530,0.3597,2656.1,2655.8,3.2078]
[1724002885725,1.88225,2655.8,2655.5,1.88237]
[1724002885923,2.99762,2655.7,2655.3,2.26081]
[1724002886118,2.99762,2655.7,2655.4,1.8825]
[1724002886330,1.1153,2655.7,2655.4,1.8825]
[1724002886631,2.99761,2655.7,2655.4,1.8825]
[1724002886833,1.1153,2655.7,2655.4,1.8825]
[1724002887348,2.9976,2655.7,2655.4,1.8825]
[1724002887631,2.9976,2655.7,2655.4,1.88249]
[1724002888721,2.9976,2655.7,2655.3,2.26084]
[1724002888929,2.9976,2655.7,2655.4,1.8825]
[1724002890033,1.1153,2655.7,2655.5,1.8824]
[1724002890842,1.1153,2655.7,2655.2,9.6618]
[1724002891030,1.88251,2655.4,2655.2,9.6618]
[1724002891229,1.1026,2655.3,2655.2,11.54445]
[1724002891858,1.1026,2655.3,2655.2,9.6618]
[1724002891940,1.1026,2655.3,2655.2,5.4858]
[1724002892831,1.1026,2655.3,2655.2,7.36845]
[1724002894040,0.3521,2655.3,2655.2,7.36845]
[1724002895030,0.749,2655.7,2655.2,5.4858]
[1724002895229,0.749,2655.7,2655.5,1.88241]
[1724002895230,1.1029,2655.7,2655.5,1.88241]
[1724002895429,4.8685,2655.7,2655.5,1.88241]
[1724002896732,4.8685,2655.7,2655.2,5.4858]
[1724002896733,6.75079,2655.7,2655.2,5.4858]
[1724002896932,1.1029,2655.7,2655.2,5.4858]
[1724002897328,1.1029,2655.7,2655.6,1.88236]
[1724002898640,1.88204,2656.1,2655.6,3.7656]
[1724002898849,1.1219,2656.0,2655.9,1.88212]
[1724002899334,1.1219,2656.0,2655.9,2.26922]
[1724002899868,0.3592,2656.0,2655.9,2.26922]
[1724002900540,2.64463,2656.3,2656.1,1.88195]
[1724002900845,0.3883,2656.2,2656.1,1.88195]
[1724002906440,0.3883,2656.2,2656.1,2.83095]
[1724002909052,0.7627,2656.3,2656.2,1.88194]
[1724002909361,0.3902,2656.3,2656.2,1.88194]
[1724002912293,0.3902,2656.3,2656.1,2.83098]
[1724002912568,0.3902,2656.3,2656.1,2.83096]
[1724002913080,0.3674,2656.2,2656.1,2.83096]
[1724002914255,0.3902,2656.3,2656.1,2.83096]
[1724002914256,0.3821026,2656.4,2656.2,1.88194]
[1724002914450,0.3821026,2656.4,2656.3,1.3049]
[1724002914953,4.1469026,2656.4,2656.3,1.3049]
[1724002915864,4.1469026,2656.4,2656.3,3.18677]
[1724002917869,0.3821026,2656.4,2656.3,3.18677]
[1724002918567,0.3821026,2656.4,2656.3,6.39457]
[1724002918870,0.3821026,2656.4,2656.3,3.18677]
[1724002921054,0.0045026,2656.4,2656.3,6.39457]
[1724002925666,0.0045026,2656.4,2656.3,6.57982908]
[1724002926470,0.0045026,2656.4,2656.3,6.39457]
[1724002928074,0.0045026,2656.4,2656.3,6.58525753]
[1724002928965,0.0045026,2656.4,2656.3,6.39457]
[1724002930065,0.0045026,2656.4,2656.3,6.58710211]
[1724002931030,0.0045026,2656.4,2656.3,6.39457]
[1724002931685,0.0045026,2656.4,2656.3,6.58085314]
[1724002932572,0.0045026,2656.4,2656.3,6.39457]
[1724002934078,1.8863026,2656.4,2656.3,1.3049]
[1724002934270,1.8863026,2656.4,2656.3,0.949]
[1724002935682,5.6511026,2656.4,2656.3,0.949]
[1724002938575,1.88187,2656.3,2656.2,1.3094]
[1724002938795,2.24657,2656.3,2656.2,0.949]
[1724002940390,4.19763835,2656.3,2656.2,0.949]
[1724002941175,2.24657,2656.3,2656.2,0.949]
[1724002941979,4.19892035,2656.3,2656.2,0.949]
[1724002942183,2.24657,2656.3,2656.2,0.949]
[1724002942379,6.01137,2656.3,2656.2,0.949]
[1724002943372,1.88201,2656.1,2656.0,0.00565174]
[1724002943487,1.88201,2656.1,2656.0,0.95465174]
[1724002944087,5.64681,2656.1,2656.0,0.95465174]
[1724002944384,7.60058032,2656.1,2656.0,0.95465174]
[1724002946893,9.95814132,2656.1,2656.0,0.00565174]
[1724002947087,7.52882,2656.1,2656.0,0.00565174]
[1724002947289,9.97120036,2656.1,2656.0,0.00565174]
[1724002947521,7.52882,2656.1,2656.0,0.00565174]
[1724002947897,12.52882,2656.1,2656.0,0.00565174]
[1724002948788,13.47782,2656.1,2656.0,0.00565174]
[1724002949316,15.9195052,2656.1,2656.0,0.00565174]
[1724002950000,13.47782,2656.1,2656.0,0.00565174]
[1724002950393,15.91889972,2656.1,2656.0,0.00565174]
[1724002950587,13.47782,2656.1,2656.0,0.00565174]
[1724002950792,1.88222,2655.8,2655.7,0.949]
[1724002950992,3.83519201,2655.8,2655.7,0.949]
[1724002951297,8.68249201,2655.8,2655.7,0.949]
[1724002951604,1.8824,2655.6,2655.5,0.949]
[1724002951894,1.8824,2655.6,2655.5,2.83143]
[1724002952594,1.88234,2655.7,2655.5,2.83143]
[1724002952798,1.88234,2655.7,2655.6,0.949]
[1724002954004,5.64794,2655.7,2655.6,0.949]
[1724002954192,1.08735174,2655.8,2655.6,0.949]
[1724002954398,1.08735174,2655.8,2655.7,1.88229]
[1724002954593,6.73521174,2655.8,2655.6,2.83134]
[1724002954793,1.88229,2655.7,2655.6,0.949]
[1724002955137,2.96962174,2655.8,2655.6,2.83136]
[1724002955329,1.08735174,2655.8,2655.7,1.88229]
[1724002955505,1.88229,2655.7,2655.6,0.949]
[1724002955704,1.88229,2655.7,2655.6,2.83136]
[1724002955897,2.96962174,2655.8,2655.6,2.83136]
[1724002956193,1.08735174,2655.8,2655.7,1.88229]
[1724002956508,1.88229,2655.7,2655.6,2.83133]
[1724002957206,2.96962174,2655.8,2655.6,2.83133]
[1724002957418,1.88229,2655.7,2655.6,2.83133]
[1724002957600,2.96961174,2655.8,2655.6,2.83133]
[1724002958109,1.88229,2655.7,2655.6,0.949]
[1724002958400,2.96962174,2655.8,2655.6,2.83133]
[1724002958791,1.88229,2655.7,2655.6,2.83133]
[1724002959309,1.88229,2655.7,2655.6,0.949]
[1724002959687,1.88229,2655.7,2655.6,2.83136]
[1724002960204,2.96961174,2655.8,2655.6,2.83136]
[1724002960495,1.88229,2655.7,2655.6,2.83136]
[1724002960699,1.88229,2655.7,2655.6,0.949]
[1724002961402,2.96961174,2655.8,2655.6,0.949]
[1724002961602,2.96961174,2655.8,2655.7,1.88229]
[1724002962099,6.73521174,2655.8,2655.7,1.88229]
[1724002962302,6.73521174,2655.8,2655.6,2.83131]
[1724002962602,2.96961174,2655.8,2655.6,2.83131]
[1724002962799,2.96961174,2655.8,2655.7,1.88229]
[1724002963002,2.96961174,2655.8,2655.6,0.949]
[1724002963199,2.96961174,2655.8,2655.7,1.88229]
[1724002963659,6.73521174,2655.8,2655.7,1.88229]
[1724002963899,6.73521174,2655.8,2655.6,2.83133]
[1724002964106,2.96961174,2655.8,2655.6,2.83133]
[1724002965902,2.96961174,2655.8,2655.7,1.88229]
[1724002966106,0.00565174,2655.8,2655.7,1.88229]
[1724002966307,0.00565174,2655.8,2655.7,2.59039]
[1724002966910,0.00565174,2655.8,2655.7,6.35599]
[1724002967200,0.00565174,2655.8,2655.7,2.59039]
[1724002971211,0.00565174,2655.8,2655.7,6.35599]
[1724002971714,0.00565174,2655.8,2655.7,2.59039]
[1724002972223,0.00565174,2655.8,2655.7,6.35599]
[1724002972403,0.00565174,2655.8,2655.7,2.59039]
[1724002972601,0.00565174,2655.8,2655.7,6.35599]
[1724002973509,0.00565174,2655.8,2655.7,2.59039]
[1724002974305,0.00565174,2655.8,2655.7,6.35599]
[1724002983413,0.00565174,2655.8,2655.7,6.00009]
[1724002984211,0.00565174,2655.8,2655.6,0.949]
[1724002984212,1.88229,2655.7,2655.6,0.949]
[1724002984525,0.3536,2655.7,2655.6,0.949]
[1724002984715,0.3536,2655.7,2655.6,2.83136]
[1724002984945,0.3536,2655.7,2655.6,6.59696]
[1724002985118,0.39245174,2655.8,2655.6,7.9224]
[1724002985417,0.74605174,2655.8,2655.6,2.83131]
[1724002985615,0.74605174,2655.8,2655.7,1.88229]
[1724002986720,0.74605174,2655.8,2655.6,6.03912]
[1724002987428,0.74605174,2655.8,2655.7,1.88229]
[1724002987823,2.62827174,2655.8,2655.6,2.83134]
[1724002988025,4.58124375,2655.8,2655.6,2.83134]
[1724002988211,2.62827174,2655.8,2655.6,6.03914]
[1724002988416,2.62827174,2655.8,2655.6,2.83134]
[1724002988617,4.58124375,2655.8,2655.6,2.83134]
[1724002989112,0.74605174,2655.8,2655.6,2.83134]
[1724002989824,4.58126375,2655.8,2655.6,2.83134]
[1724002990519,2.69902375,2655.8,2655.6,2.83134]
[1724002990713,2.69902375,2655.8,2655.6,6.03914]
[1724002991127,0.74605174,2655.8,2655.6,6.03914]
[1724002991521,0.74605174,2655.8,2655.7,1.88229]
[1724002991922,2.69902375,2655.8,2655.7,1.88229]
[1724002992620,0.74605174,2655.8,2655.7,1.88229]
[1724002993153,0.35925174,2655.8,2655.7,1.88229]
[1724002993924,0.00565174,2655.8,2655.7,1.88229]
[1724002997423,1.95297201,2656.0,2655.7,5.64789]
[1724002997800,1.95297201,2656.1,2656.0,1.88208]
[1724002997926,1.95297201,2656.1,2656.0,3.18588]
[1724003001125,1.95297201,2656.1,2656.0,0.949]
[1724003001321,4.32317501,2656.2,2656.0,0.949]
[1724003001642,4.32317501,2656.2,2656.0,2.83107]
[1724003002328,1.95567252,2656.1,2656.0,2.83107]
[1724003002512,4.32317501,2656.2,2656.0,2.83107]
[1724003003427,2.44121501,2656.2,2656.1,1.88201]
[1724003003619,1.95572095,2656.2,2656.1,1.88201]
[1724003004330,1.95572095,2656.3,2656.2,1.88194]
[1724003004516,1.95572095,2656.3,2656.2,2.83094]
[1724003006830,4.96902355,2656.4,2656.2,2.83094]
[1724003007439,3.08722355,2656.4,2656.2,2.83094]
[1724003008822,3.08722355,2656.4,2656.3,1.88187]
[1724003017935,1.1315026,2656.4,2656.3,1.88187]
[1724003018333,0.0045026,2656.4,2656.3,8.85447]
[1724003018532,0.0045026,2656.4,2656.3,9.77210143]
[1724003018861,0.0045026,2656.4,2656.3,11.65397143]
[1724003019135,0.0045026,2656.4,2656.3,16.65397143]
[1724003019544,0.0045026,2656.4,2656.3,17.63867842]
[1724003020339,0.0045026,2656.4,2656.3,19.52085006]
[1724003020536,0.0045026,2656.4,2656.3,17.63867842]
[1724003021033,0.0045026,2656.4,2656.3,17.99097842]
[1724003021640,0.0045026,2656.4,2656.3,17.00627143]
[1724003022248,0.0045026,2656.4,2656.3,17.99097842]
[1724003022758,0.0045026,2656.4,2656.3,17.00627143]
[1724003023955,0.0045026,2656.4,2656.3,17.99097842]
[1724003024442,0.0045026,2656.4,2656.3,17.00627143]
[1724003024829,0.0045026,2656.4,2656.3,13.79847143]
[1724003025036,0.0045026,2656.4,2656.3,17.00627143]
[1724003027831,0.0045026,2656.4,2656.3,18.88814143]
[1724003028159,2.6e-06,2656.4,2656.3,18.88814143]
[1724003029743,2.6e-06,2656.4,2656.3,12.00627143]
[1724003030340,2.6e-06,2656.4,2656.3,18.88814143]
[1724003031145,2.6e-06,2656.4,2656.3,13.88814143]
[1724003031545,2.6e-06,2656.4,2656.3,18.88814143]
[1724003033056,2.6e-06,2656.4,2656.3,13.88814143]
[1724003037047,2.6e-06,2656.4,2656.3,14.87284842]
[1724003037952,2.6e-06,2656.4,2656.3,11.66504842]
[1724003038256,2.6e-06,2656.4,2656.3,14.87284842]
[1724003038452,1.1096,2656.9,2656.8,1.88151]
[1724003038754,1.1096,2656.9,2656.8,2.83051]
[1724003039050,4.8736,2656.9,2656.8,6.03831]
[1724003039447,1.1096,2656.9,2656.8,6.03831]
[1724003039776,1.11245656,2656.9,2656.8,6.04185538]
[1724003043747,1.11245656,2656.9,2656.8,7.92336538]
[1724003044859,1.11245656,2656.9,2656.8,6.04185538]
[1724003045297,0.00285656,2656.9,2656.8,7.92336538]
[1724003047546,0.00285656,2656.9,2656.8,6.04185538]
[1724003048050,0.00285656,2656.9,2656.8,7.92336538]
[1724003048903,0.00285656,2656.9,2656.8,6.04185538]
[1724003049957,0.00285656,2656.9,2656.8,7.92336538]
[1724003050461,0.00285656,2656.9,2656.8,6.04185538]
[1724003050663,0.00285656,2656.9,2656.8,7.92336538]
[1724003051158,0.00285656,2656.9,2656.8,6.04185538]
[1724003051359,0.00285656,2656.9,2656.8,11.68736538]
[1724003052052,0.00285656,2656.9,2656.8,5.09285538]
[1724003052260,0.00285656,2656.9,2656.8,6.04185538]
[1724003058373,0.00285656,2656.9,2656.8,3.21134538]
[1724003058663,0.00285656,2656.9,2656.8,6.04185538]
[1724003058863,0.00285656,2656.9,2656.8,3.21134538]
[1724003059067,0.76225656,2656.9,2656.8,4.16034538]
[1724003059969,0.76225656,2656.9,2656.8,6.04185538]
[1724003060671,0.76225656,2656.9,2656.8,4.16034538]
[1724003060965,0.76225656,2656.9,2656.8,6.04185538]
[1724003065973,0.76225656,2656.9,2656.8,3.21134538]
[1724003066171,0.76225656,2656.9,2656.8,4.16034538]
[1724003066379,4.52625656,2656.9,2656.8,4.16034538]
[1724003068478,0.76225656,2656.9,2656.8,4.16034538]
[1724003077285,0.76225656,2656.9,2656.8,6.04185538]
[1724003077480,0.76225656,2656.9,2656.8,4.16034538]
[1724003078382,0.76225656,2656.9,2656.8,6.04185538]
[1724003078688,0.76225656,2656.9,2656.8,2.83405538]
[1724003078882,0.76225656,2656.9,2656.8,6.04185538]
[1724003080282,0.76225656,2656.9,2656.8,7.02656237]
[1724003080683,0.76225656,2656.9,2656.8,6.04185538]
[1724003081080,0.76225656,2656.9,2656.8,2.83405538]
[1724003081286,0.76225656,2656.9,2656.8,6.04185538]
[1724003082182,0.76225656,2656.9,2656.8,2.83405538]
[1724003082479,0.76225656,2656.9,2656.8,3.81876237]
[1724003082683,0.76225656,2656.9,2656.8,7.02656237]
[1724003083476,0.76225656,2656.9,2656.8,5.14505237]
[1724003083783,0.00285656,2656.9,2656.8,7.92385205]
[1724003083970,0.00285656,2656.9,2656.8,14.99122764]
[1724003084181,0.00285656,2656.9,2656.8,9.25781365]
[1724003084579,0.00285656,2656.9,2656.8,10.73767309]
[1724003085868,0.00285656,2656.9,2656.8,9.41867309]
[1724003086175,0.00285656,2656.9,2656.8,10.36763862]
[1724003086288,0.00285656,2656.9,2656.8,8.52267918]
[1724003086476,0.00285656,2656.9,2656.8,8.91050138]
[1724003088590,0.00285656,2656.9,2656.8,9.50934264]
[1724003088791,0.00285656,2656.9,2656.8,8.91050138]
[1724003089585,0.00285656,2656.9,2656.8,3.21134538]
[1724003089995,0.00285656,2656.9,2656.8,4.16034538]
[1724003090082,0.00285656,2656.9,2656.8,6.04185538]
[1724003090286,0.73965656,2656.9,2656.8,6.04185538]
[1724003090682,0.73965656,2656.9,2656.8,4.16034538]
[1724003091193,0.73965656,2656.9,2656.8,6.04185538]
[1724003091383,0.73965656,2656.9,2656.8,7.02850471]
[1724003094206,0.73965656,2656.9,2656.8,4.16034538]
[1724003094490,0.73965656,2656.9,2656.8,7.02850471]
[1724003094719,0.73965656,2656.9,2656.8,7.92391584]
[1724003094907,0.73965656,2656.9,2656.8,8.52276926]
[1724003095479,9.50365656,2656.9,2656.8,2.48445926]
[1724003095683,16.10167157,2656.9,2656.4,1.93603156]
[1724003095881,3.83626876,2656.5,2656.4,0.949]
[1724003096147,1.88168,2656.6,2656.4,0.949]
[1724003096288,2.69362653,2656.5,2656.4,0.949]
[1724003096682,6.45842653,2656.5,2656.4,0.95302924]
[1724003097288,4.505,2656.5,2656.4,0.95302924]
[1724003099294,4.505,2656.5,2656.4,0.00402924]
[1724003099485,0.7402,2656.5,2656.4,2.83481924]
[1724003100295,0.7402,2656.5,2656.4,0.95302924]
[1724003101193,4.505,2656.5,2656.4,0.95302924]
[1724003101790,4.505,2656.5,2656.4,2.83481924]
[1724003102496,4.505,2656.5,2656.4,3.18941924]
[1724003106208,4.505,2656.5,2656.4,0.35862924]
[1724003106395,4.505,2656.5,2656.4,1.30762924]
[1724003107290,4.505,2656.5,2656.4,3.18941924]
[1724003107598,0.3596,2656.6,2656.5,1.88172]
[1724003113411,0.00285656,2656.9,2656.5,1.88172]
[1724003113606,0.00285656,2656.9,2656.8,2.83051]
[1724003114104,0.00285656,2656.9,2656.8,3.54691]
[1724003115602,0.00285656,2656.9,2656.8,7.31091]
[1724003118305,0.00285656,2656.9,2656.8,3.54691]
[1724003118509,0.00285656,2656.9,2656.8,3.18931]
[1724003118697,0.00285656,2656.9,2656.8,1.3078]
[1724003118902,0.00285656,2656.9,2656.8,3.18931]
[1724003121413,0.00285656,2656.9,2656.8,3.91471]
[1724003124801,0.00285656,2656.9,2656.8,7.12251]
[1724003126917,0.00285656,2656.9,2656.8,10.88651]
[1724003127516,0.00285656,2656.9,2656.8,12.76802]
[1724003128115,0.3634,2657.3,2657.2,1.88123]
[1724003128519,0.3634,2657.3,2657.2,2.26403]
[1724003129022,0.3674245,2657.3,2657.2,2.26403]
[1724003140744,1.88137,2657.0,2656.9,3.2078]
[1724003140933,1.88151,2656.8,2656.6,3.21345174]
[1724003141132,2.24608,2656.7,2656.6,3.21345174]
[1724003141531,6.01008,2656.7,2656.6,3.21345174]
[1724003142423,1.88172,2656.5,2656.4,0.00402924]
[1724003142629,6.03852,2656.5,2656.4,0.00402924]
[1724003142829,14.80332,2656.5,2656.4,0.00402924]
[1724003144040,9.80332,2656.5,2656.4,0.00402924]
[1724003146064,9.80332,2656.5,2656.2,0.00565174]
[1724003146065,1.88187,2656.3,2656.2,0.00565174]
[1724003146356,1.88219,2655.9,2655.7,0.949]
[1724003146540,1.88229,2655.7,2655.4,0.949]
[1724003146856,0.3647,2655.6,2655.4,0.949]
[1724003147040,2.24712,2655.6,2655.4,0.0044089]
[1724003147227,6.01268,2655.6,2655.4,0.0044089]
[1724003147635,2.24708,2655.6,2655.4,0.0044089]
[1724003147936,0.3647,2655.6,2655.4,0.9534089]
[1724003148128,0.3647,2655.6,2655.4,2.8358889]
[1724003148634,0.3647,2655.6,2655.4,0.9534089]
[1724003149025,0.3647,2655.6,2655.4,0.0044089]
[1724003149231,4.1303,2655.6,2655.4,0.0044089]
[1724003150439,2.24707,2655.6,2655.4,0.0044089]
[1724003151157,6.96167,2655.6,2655.4,0.0044089]
[1724003151430,4.7146,2655.5,2655.4,0.0044089]
[1724003151537,6.59703,2655.5,2655.4,0.0044089]
[1724003151738,1.88257,2655.3,2655.2,0.00565174]